{"text_format":"1","workbook":"xlsx","n_sheets":14,"sheets":["Herrtabellen 2025","B-Side 2025","Herrtabellen 2024","Herrtabellen 2023 (2)","B-Side 2024","Herrtabellen 2023","Herrtabellen 2023 (Utan Pär)","Herrtabellen 2023 (Alt. vers)","B-side 2022","Slutspelsgrupper 2023","Slutspel dag 1o2 2023","Slutspel söndag 22","Sutspel 2021","Herrtabellen 2022"],"not_rendered":{"charts":0,"images":1,"macros":1,"external_links":0,"defined_names":0,"comments":8,"pivot_tables":0},"unopened":[],"bounds":{"document_bytes":16777216,"sheet_cells":100000,"rows_first":2000,"rows_last":500,"rows_between":2000,"halvings":0,"cell_chars":16384,"cell_head_chars":4096},"cells_cut":0,"cells_raw":0,"read":"whole","date_system":"1900"}

{"sheet":"Herrtabellen 2025","index":0,"n_rows":47,"n_cols":14,"rows_kept":47,"cut":false,"hidden":false,"merged":[[0,0,0,13],[22,1,22,11],[42,0,42,12],[2,1,2,11],[3,1,3,3],[3,4,3,8],[3,9,3,11],[46,2,53,12]]}
["Herrtabellen 2025"]
[]
["VIT","Uppdaterad 2025-05-27",null,null,null,null,null,null,null,null,null,null,"VIT",2025]
["Placering","Namn",null,null,"Antal sistor + bommade",null,null,null,null,"Antal omgångar",null,null,"Poäng","Totplac."]
[1,"Christer",null,null,null,0,"+",0,null,null,1,null,4]
[2,"Kalle",null,null,null,0,"+",0,null,null,1,null,3.6]
[3,"Melle",null,null,null,0,"+",0,null,null,1,null,3.2]
[4,"Clabbe",null,null,null,0,"+",0,null,null,1,null,2.8]
[5,"Micke",null,null,null,0,"+",0,null,null,1,null,2.4]
[6,"Benny",null,null,null,0,"+",0,null,null,1,null,2]
[7,"Mats P",null,null,null,0,"+",0,null,null,1,null,1.6]
[8,"Morgan",null,null,null,0,"+",0,null,null,1,null,1.2]
[9,"Peter Å",null,null,null,0,"+",0,null,null,1,null,0.8]
[10,"Magnus",null,null,null,0,"+",0,null,null,1,null,0.4]
[11,"Martin ",null,null,null,0,"+",0,null,null,1,null,0]
[12,"Mats Mats",null,null,null,0,"+",0,null,null,1,null,0]
[13,"Myggan",null,null,null,0,"+",0,null,null,1,null,0]
[14,"Ove",null,null,null,0,"+",0,null,null,1,null,0]
[15,"Sir Conta",null,null,null,0,"+",0,null,null,1,null,0]
[16,"Ville",null,null,null,0,"+",0,null,null,1,null,0]
["Summa: ",null,null,null," ",{"$f":"SUM(F5:F20)","v":0},"=",{"$f":"SUM(H5:H20)","v":0},null,null,{"$f":"SUM(K5:K20)","v":16},null,{"$f":"SUM(M5:M20)","v":22}]
[]
["VIT","Omgångar (0 singelmatcher släpar, ej parmatch)",null,null,null,null,null,null,null,null,null,null,"VIT",2025]
["Omgång",1,2,3,4,5,6,7,8,9,10,null,"Totalt","Släpar"]
["Benny",2,null,null,null,null,null,null,null,null,null,null,{"$f":"SUM(B25:L25)","v":2}]
["Christer",4,null,null,null,null,null,null,null,null,null,null,{"$f":"SUM(B26:L26)","v":4}]
["Clabbe",2.8,null,null,null,null,null,null,null,null,null,null,2.8]
["Kalle",3.6,null,null,null,null,null,null,null,null,null,null,3.6]
["Magnus",0.4,null,null,null,null,null,null,null,null,null,null,0.4]
["Martin ",0,null,null,null,null,null,null,null,null,null,null,0]
["Mats Mats",0,null,null,null,null,null,null,null,null,null,null,0]
["Mats P",1.6,null,null,null,null,null,null,null,null,null,null,1.6]
["Melle",3.2,null,null,null,null,null,null,null,null,null,null,3.2]
["Micke",2.4,null,null,null,null,null,null,null,null,null,null,2.4]
["Morgan",1.2,null,null,null,null,null,null,null,null,null,null,{"$f":"SUM(B35:L35)","v":1.2}]
["Myggan",0,null,null,null,null,null,null,null,null,null,null,0]
["Ove",0,null,null,null,null,null,null,null,null,null,null,0]
["Peter Å",0.8,null,null,null,null,null,null,null,null,null,null,0.8]
["Sir Conta",0,null,null,null,null,null,null,null,null,null,null,0]
["Ville",0,null,null,null,null,null,null,null,null,null,null,0]
[null,{"$f":"SUM(B25:B39)","v":22},0,0,0,0,0,0,0,0,0,null,{"$f":"SUM(M25:M40)","v":22}]
["Omg. klar","JA","NEJ","NEJ","NEJ","NEJ","NEJ","NEJ","NEJ","NEJ","NEJ"]
[]
[null,"=","Gemensam omgång. De två bästa av tre räknas. Markeras med GULT."]
[]
[null,"=","Parspel (en sista)"]
[null,null,"Regler parspel: Fyrboll bästboll matchspel (lagspel två och två. Varje lag väljer bästa resultatet per hål. I övrigt som Matchspel. Det lag vinner, som har fler hål upp än vad det är kvar att spela). Man spelar på sitt egna hcp och sin egen boll. 2p per spelare för det vinnande laget, 1p per spelare vid delad match. 0,5p per spelare för det lag som har bästa resultat på senast vunna hål efter 18 spelade hål."]

{"sheet":"B-Side 2025","index":1,"n_rows":1,"n_cols":1,"rows_kept":1,"cut":false,"hidden":false,"merged":[[0,0,0,13],[1,1,1,11],[2,1,2,3],[2,4,2,8],[2,9,2,11]]}
["Herrtabellen 2025"]

{"sheet":"Herrtabellen 2024","index":2,"n_rows":38,"n_cols":39,"rows_kept":38,"cut":false,"hidden":false,"merged":[[37,3,42,18],[0,0,0,38],[1,1,1,16],[1,21,1,36],[2,1,2,8],[2,9,2,13],[2,14,2,16],[2,21,2,28],[2,29,2,33],[2,34,2,36],[13,1,13,16],[13,21,13,36],[25,0,25,17],[25,20,25,37],[30,3,34,18]]}
["Herrtabellen 2024 (Ny juli)"]
["RÖD","Uppdaterad 2024-09-08",null,null,null,null,null,null,null,null,null,null,null,null,null,null,null,"RÖD",2024,null,"BLÅ","Uppdaterad 2024-09-08",null,null,null,null,null,null,null,null,null,null,null,null,null,null,null,"BLÅ",2024]
["Placering","Namn",null,null,null,null,null,null,null,"Antal sistor + bommade",null,null,null,null,"Antal omgångar",null,null,"Poäng","Totplac.",null,"Placering","Namn",null,null,null,null,null,null,null,"Antal sistor + bommade",null,null,null,null,"Antal omgångar",null,null,"Poäng","Totplac."]
[1,"MatsMats",null,null,null,null,null,null,null,null,3,"+",4,null,null,13,null,28,1,null,1,"Morgan",null,null,null,null,null,null,null,null,4,"+",3,null,null,13,null,22.7,2]
[2,"Martin",null,null,null,null,null,null,null,null,4,"+",3,null,null,13,null,23.3,3,null,2,"Myggan",null,null,null,null,null,null,null,null,5,"+",2,null,null,13,null,22.5,4]
[3,"Benny",null,null,null,null,null,null,null,null,4,"+",3,null,null,13,null,22.3,5,null,3,"Mats P",null,null,null,null,null,null,null,null,3,"+",4,null,null,13,null,20.8,6]
[4,"Melle",null,null,null,null,null,null," ",null,3,"+",4,null,null,13,null,15.1,8,null,4,"Ove",null,null,null,null,null,null,null,null,4,"+",3,null,null,13,null,16.7,7]
[5,"Ingvar",null,null,null,null,null,null,null,null,2,"+",5,null,null,13,null,15,10,null,5,"Peter J",null,null,null,null,null,null,null,null,3,"+",4,null,null,13,null,15.9,9]
[6,"Kalle",null,null,null,null,null,null,null,null,4,"+",3,null,null,13,null,14.8,11,null,6,"Micke",null,null,null,null,null,null,null,null,4,"+",3,null,null,13,null,13.6,12]
[7,"Mattias",null,null,null,null,null,null,null,null,5,"+",2,null,null,13,null,8.9,14,null,7,"Conta",null,null,null,null,null,null,null,null,2,"+",5,null,null,13,null,12.5,13]
[8,"Ville",null,null,null,null,null,null,null,null,3,"+",4,null,null,13,null,6.5,16,null,8,"Magnus",null,null,null,null,null,null,null,null,3,"+",4,null,null,13,null,10.9,15]
["Summa: ",null,null,null,null,null,null,null,null," ",{"$f":"SUM(K4:K11)","v":28},"=",{"$f":"SUM(M4:M11)","v":28},null,null,{"$f":"SUM(P4:P11)","v":104},null,{"$f":"SUM(R4:R11)","v":133.89999999999998},null,null,"Summa: ",null,null,null,null,null,null,null,null," ",{"$f":"SUM(AE4:AE11)","v":28},"=",{"$f":"SUM(AG4:AG11)","v":28},null,null,{"$f":"SUM(AJ4:AJ11)","v":104},null,{"$f":"SUM(AL4:AL11)","v":135.6}]
[]
["RÖD","Omgångar (0 singelmatcher släpar, ej parmatch)",null,null,null,null,null,null,null,null,null,null,null,null,null,null,null,"RÖD",2024,null,"BLÅ","Omgångar (0 singelmatcher släpar, ej parmatch)",null,null,null,null,null,null,null,null,null,null,null,null,null,null,null,"BLÅ",2024]
["Omgång",1,2,3,4,5,6,7,8,9,10,11,12,13,null,null,null,"Totalt","Släpar",null,"Omgång",1,2,3,4,5,6,7,8,9,10,11,12,13,null,null,null,"Totalt","Släpar"]
["Benny",0,3,1.5,3,3,null,null,0.5,0.5,3.6,0.5,3.5,3.2,null,null,null,{"$f":"SUM(B16:Q16)","v":22.3},"KLAR",null,"Conta",1.6,0.5,1.5,0,null,0,null,1,3,0.4,3.5,1,0,null,null,null,{"$f":"SUM(V16:AK16)","v":12.5},"KLAR"]
["Ingvar",0,3,0,3,0.5,3,0,null,0,0,null,3.5,2,null,null,null,15,"KLAR",null,"Magnus",4,0,0,null,null,0,1.5,0,1,0,0.5,1.5,2.4,null,null,null,10.9,"KLAR"]
["Kalle",2,3.5,0,null,0.5,3.5,3.5,0,null,0,1,0,0.8,null,null,null,14.8,"KLAR",null,"Mats P",3.2,3,2.5,0.5,0,3.5,0,3.5,3,0,null,null,1.6,null,null,null,20.8,"KLAR"]
["Martin",0,null,2.5,0.5,0,3.5,3.5,3.5,3,4,null,0,2.8,null,null,null,23.3,"KLAR",null,"Micke",0.8,0,1,0,0.5,null,null,1.5,0.5,2.8,3,3.5,0,null,null,null,13.6,"KLAR"]
["MatsMats",0,0,2.5,null,3.5,null,3,3,3.5,2,3,3.5,4,null,null,null,28,"KLAR",null,"Morgan",2.4,3.5,2.5,null,3,null,3.5,3.5,0.5,0.8,3,0,0,null,null,null,22.7,"KLAR"]
["Mattias",0,0.5,1,0.5,3,0,null,2.5,null,0,0.5,0.5,0.4,null,null,null,8.9,"KLAR",null,"Myggan",3.6,3,1,3.5,0.5,3.5,3.5,0,1.5,2.4,null,null,0,null,null,null,22.5,"KLAR"]
["Melle",0,0.5,1,3,null,0,0.5,null,0.5,0,3,3,3.6,null,null,null,15.1,"KLAR",null,"Ove",0,0.5,1.5,3.5,3.5,3,1,null,null,3.2,0.5,0,0,null,null,null,16.7,"KLAR"]
["Ville",0,null,1,0.5,null,0.5,0,0,3,0,1.5,0,0,null,null,null,6.5,"KLAR",null,"Peter J",0,3.5,0,3,3,0.5,0,null,null,1.2,0,3.5,1.2,null,null,null,15.899999999999999,"KLAR"]
[null,{"$f":"SUM(B16:B22)","v":2},10.5,8.5,10,10.5,10,10.5,9.5,7.5,9.6,8,14,16.8,null,null,null,{"$f":"SUM(R16:R23)","v":133.89999999999998},null,null,null,{"$f":"SUM(V16:V22)","v":15.600000000000001},10.5,10,7.5,7.5,10,9.5,9.5,9.5,9.6000000000000014,10.5,6,4,null,null,null,{"$f":"SUM(AL16:AL23)","v":135.6}]
["Omg. klar","JA","JA","JA","JA","JA","JA","JA","JA","JA","JA","JA","JA","JA",null,null,null,null,null,null,"Omg. klar","JA","JA","JA","JA","JA","JA","JA","JA","JA","JA","JA","JA","JA"]
[]
[]
[null,null,"=","Slagspel - Gemensam omgång (De TVÅ bästa av totalt tre omgångar räknas, Markeras med GULT)"]
[]
[null,null,"=","Parspel (en sista)",null,null,"Gäller ej 2023"]
[null,null,null,"Regler parspel: Fyrboll bästboll matchspel (lagspel två och två. Varje lag väljer bästa resultatet per hål. I övrigt som Matchspel. Det lag vinner, som har fler hål upp än vad det är kvar att spela). Man spelar på sitt egna hcp och sin egen boll. 2p per spelare för det vinnande laget, 1p per spelare vid delad match. 0,5p per spelare för det lag som har bästa resultat på senast vunna hål efter 18 spelade hål."]
[]
[]
[]
[]
[]
[null,null,"=","Mixmatch (Irish greensome, två sistor)"]
[null,null,null,"Mixregler: Irish greensome, matchspel (spel två och två. Båda spelarna slår ut från varje tee. Skillnaden är att på alla par 4 och par 5 hål slås ett slag till på partnerns boll innan man väljer vilken boll man ska spela vidare på. Spelet fortsätter sedan som Foursome). Lägg ihop era slopeslag och dela med två. Blir det ojämnt avrunda neråt. Skillnaden mellan lagen i slopehcp är de hål ena laget har ett slag extra. Vinnarna hål 1-9 får per spelare 1p, sistan 0,2p. Vinnarna hål 10-18 får per spelare 1p, sistan 0,3p. Lika resultat ger 0,5p var."]

{"sheet":"Herrtabellen 2023 (2)","index":3,"n_rows":42,"n_cols":39,"rows_kept":42,"cut":false,"hidden":false,"merged":[[41,3,46,18],[0,0,0,38],[1,1,1,16],[1,21,1,36],[2,1,2,8],[2,9,2,13],[2,14,2,16],[2,21,2,28],[2,29,2,33],[2,34,2,36],[15,1,15,16],[15,21,15,36],[29,0,29,17],[29,20,29,37],[34,3,38,18]]}
["Herrtabellen 2023"]
["RÖD","Uppdaterad 2023-10-08 (Slutlig)",null,null,null,null,null,null,null,null,null,null,null,null,null,null,null,"RÖD",2023,null,"BLÅ","Uppdaterad 2023-10-08 (Slutlig)",null,null,null,null,null,null,null,null,null,null,null,null,null,null,null,"BLÅ",2023]
["Placering","Namn",null,null,null,null,null,null,null,"Antal sistor + bommade",null,null,null,null,"Antal omgångar",null,null,"Poäng","Totplac.",null,"Placering","Namn",null,null,null,null,null,null,null,"Antal sistor + bommade",null,null,null,null,"Antal omgångar",null,null,"Poäng","Totplac."]
[1,"Magnus",null,null,null,null,null,null,null,null,6,"+",3,null,null,12,null,30,2,null,1,"Clabbe",null,null,null,null,null,null,null,null,3,"+",5,null,null,12,null,31.7,1]
[2,"Eddie",null,null,null,null,null,null,null,null,7,"+",2,null,null,12,null,28.5,3,null,2,"Kalle",null,null,null,null,null,null,null,null,6,"+",2,null,null,12,null,22.8,4]
[3,"Martin",null,null,null,null,null,null,null,null,4,"+",5,null,null,12,null,21.7,5,null,3,"Benny",null,null,null,null,null,null,null,null,3,"+",5,null,null,12,null,18.399999999999999,6]
[4,"Pär",null,null,null,null,null,null,null,null,8,"+",1,null,null,12,null,21.2,7,null,4,"Micke",null,null,null,null,null,null,null,null,3,"+",5,null,null,12,null,18.3,8]
[5,"Peter J",null,null,null,null,null,null,null,null,5,"+",4,null,null,12,null,19.8,9,null,5,"Christer",null,null,null,null,null,null,null,null,5,"+",3,null,null,12,null,18.2,10]
[6,"Morgan",null,null,null,null,null,null,null,null,3,"+",6,null,null,12,null,19.8,11,null,6,"Ville",null,null,null,null,null,null,null,null,3,"+",5,null,null,12,null,16.3,12]
[7,"Mattias",null,null,null,null,null,null,null,null,4,"+",5,null,null,12,null,18.2,13,null,7,"MatsMats",null,null,null,null,null,null,null,null,5,"+",3,null,null,12,null,14.8,14]
[8,"Myggan",null,null,null,null,null,null," ",null,3,"+",6,null,null,12,null,16.899999999999999,15,null,8,"Melle",null,null,null,null,null,null,null,null,5,"+",3,null,null,12,null,14.8,16]
[9,"Mats P",null,null,null,null,null,null,null,null,3,"+",6,null,null,12,null,16.7,17,null,9,"Ingvar",null,null,null,null,null,null,null,null,3,"+",5,null,null,12,null,13.7,18]
[10,"Conta",null,null,null,null,null,null,null,null,2,"+",7,null,null,12,null,7,19,null,10,"Peter Å",null,null,null,null,null,null,null,null,0,"+",0,null,null,12,null,0,20]
["Summa: ",null,null,null,null,null,null,null,null," ",{"$f":"SUM(K4:K13)","v":45},"=",{"$f":"SUM(M4:M13)","v":45},null,null,{"$f":"SUM(P4:P13)","v":120},null,{"$f":"SUM(R4:R13)","v":199.79999999999998},null,null,"Summa: ",null,null,null,null,null,null,null,null," ",{"$f":"SUM(AE4:AE13)","v":36},"=",{"$f":"SUM(AG4:AG13)","v":36},null,null,{"$f":"SUM(AJ4:AJ13)","v":120},null,{"$f":"SUM(AL4:AL13)","v":169}]
[]
["RÖD","Omgångar (0 singelmatcher släpar, ej mixed)",null,null,null,null,null,null,null,null,null,null,null,null,null,null,null,"RÖD",2023,null,"BLÅ","Omgångar (0 singelmatcher släpar, ej mixed)",null,null,null,null,null,null,null,null,null,null,null,null,null,null,null,"BLÅ",2023]
["Omgång",1,2,3,4,5,6,7,8,9,10,11,12,13,null,null,null,"Totalt","Släpar",null,"Omgång",1,2,3,4,5,6,7,8,9,10,11,12,13,null,null,null,"Totalt","Släpar"]
["Conta",0,0,0,3.5,0,0,0,0,0,3.5,0,0,0,null,null,null,{"$f":"SUM(B18:Q18)","v":7},"KLAR",null,"Benny",0,1,1,0,3,0.5,0,1.5,1.5,0.5,2.4,3,4,null,null,null,{"$f":"SUM(V18:AK18)","v":18.399999999999999},"KLAR"]
["Eddie",2.8,3.5,2.2000000000000002,0,1.5,3.5,3.5,3,3.5,1.5,0,3.5,0,null,null,null,28.5,"KLAR",null,"Christer",1.6,0,1.8,1.5,1.5,0,3.5,0,3.5,0.5,0.8,3.5,0,null,null,null,18.200000000000003,"KLAR"]
["Magnus",0,3.5,1.2,1,3.5,3.5,0,3.5,3.5,0,4,3.5,2.8,null,null,null,30,"KLAR",null,"Clabbe",0,3.5,2.5,3.5,3,3,1.5,3,3.5,3,1.6,0,3.6,null,null,null,31.700000000000003,"KLAR"]
["Martin",4,0,1.3,3.5,3.5,0,3.5,0,3,0,0,0.5,2.4,null,null,null,21.7,"KLAR",null,"Ingvar",0,0,0.7,1,0,3.5,3.5,0.5,0,3,0,1.5,0,null,null,null,13.7,"KLAR"]
["Mats P",0,3.5,0,0,1,0,0,0,3.5,0,3.6,3.5,1.6,null,null,null,16.7,"KLAR",null,"Kalle",2,3.5,1.3,3.5,0.5,3.5,3.5,3,0,1.5,0,0.5,0,null,null,null,22.8,"KLAR"]
["Mattias",0,3,0,1.5,0,3.5,0,3.5,0,3.5,0,0,3.2,null,null,null,18.2,"KLAR",null,"MatsMats",3.2,1.5,1.2,1.5,3,1.5,0,1.5,0,0.5,0,0.5,0.4,null,null,null,14.8,"KLAR"]
["Morgan",3.6,0,1.5,1,3.5,3.5,0,3.5,0,0,3.2,0,0,null,null,null,19.8,"KLAR",null,"Melle",0.8,1.5,0,1,0.5,0.5,0,0.5,3.5,3,0,3.5,0,null,null,null,14.8,"KLAR"]
["Myggan",0,0.5,0,3,0,0,3.5,0,3.5,1,0.4,3,2,null,null,null,16.899999999999999,"KLAR",null,"Micke",0,0,0.3,0,3.5,3,3.5,3.5,1.5,0,0,3,0,null,null,null,18.3,"KLAR"]
["Peter J",2.4,0,2.5,0.5,0,0,3.5,3.5,0,3.5,0,3.5,0.4,null,null,null,19.799999999999997,"KLAR",null,"Peter Å",0,null,null,null,null,null,null,null,null,null,null,null,null,null,null,null,0,"Avbrutit"]
["Pär",0,3.5,0,1.5,3.5,3.5,3.5,0.5,0.5,3.5,1.2,0,0,null,null,null,21.2,"KLAR",null,"Ville",0,3.5,2.5,1.5,0.5,0,0,1,1,3.5,2.8,0,0,null,null,null,16.3,"KLAR"]
[null,{"$f":"SUM(B18:B26)","v":12.8},14,8.6999999999999993,14,13,14,14,17,17,13,11.200000000000001,17.5,12.4,null,null,null,{"$f":"SUM(R18:R27)","v":199.8},null,null,null,{"$f":"SUM(V18:V26)","v":7.6000000000000005},11,8.8000000000000007,12,15,15.5,15.5,13.5,13.5,12,4.8000000000000007,15.5,8,null,null,null,{"$f":"SUM(AL18:AL27)","v":169.00000000000003}]
["Omg. klar","JA","JA","JA","JA","JA","JA","JA","JA","JA","JA","JA","JA","JA",null,null,null,null,null,null,"Omg. klar","JA","JA","JA","JA","JA","JA","JA","JA","JA","JA","JA","JA","JA"]
[]
[]
[null,null,"=","Slagspel - Gemensam omgång (De TVÅ bästa av totalt tre omgångar räknas, Markeras med GULT)"]
[]
[null,null,"=","Parspel (en sista)",null,null,"Gäller ej 2023"]
[null,null,null,"Regler parspel: Fyrboll bästboll matchspel (lagspel två och två. Varje lag väljer bästa resultatet per hål. I övrigt som Matchspel. Det lag vinner, som har fler hål upp än vad det är kvar att spela). Man spelar på sitt egna hcp och sin egen boll. 2p per spelare för det vinnande laget, 1p per spelare vid delad match. 0,5p per spelare för det lag som har bästa resultat på senast vunna hål efter 18 spelade hål."]
[]
[]
[]
[]
[]
[null,null,"=","Mixmatch (Irish greensome, två sistor)"]
[null,null,null,"Mixregler: Irish greensome, matchspel (spel två och två. Båda spelarna slår ut från varje tee. Skillnaden är att på alla par 4 och par 5 hål slås ett slag till på partnerns boll innan man väljer vilken boll man ska spela vidare på. Spelet fortsätter sedan som Foursome). Lägg ihop era slopeslag och dela med två. Blir det ojämnt avrunda neråt. Skillnaden mellan lagen i slopehcp är de hål ena laget har ett slag extra. Vinnarna hål 1-9 får per spelare 1p, sistan 0,2p. Vinnarna hål 10-18 får per spelare 1p, sistan 0,3p. Lika resultat ger 0,5p var."]

{"sheet":"B-Side 2024","index":4,"n_rows":12,"n_cols":39,"rows_kept":12,"cut":false,"hidden":false,"merged":[[0,0,0,38],[1,1,1,16],[1,21,1,36],[2,1,2,8],[2,9,2,13],[2,14,2,16],[2,21,2,28],[2,29,2,33],[2,34,2,36]]}
["Herrtabellen 2024"]
["RÖD","Uppdaterad 2024-07-20",null,null,null,null,null,null,null,null,null,null,null,null,null,null,null,"RÖD",2024,null,"BLÅ","Uppdaterad 2024-07-20",null,null,null,null,null,null,null,null,null,null,null,null,null,null,null,"BLÅ",2024]
["Placering","Namn",null,null,null,null,null,null,null,"Antal sistor + bommade",null,null,null,null,"Antal omgångar",null,null,"Poäng","Totplac.",null,"Placering","Namn",null,null,null,null,null,null,null,"Antal sistor + bommade",null,null,null,null,"Antal omgångar",null,null,"Poäng","Totplac."]
[1,"Martin",null,null,null,null,null,null,null,null,1,"+",1,null,null,4,null,9.3000000000000007,null,null,1,"Morgan",null,null,null,null,null,null,null,null,3,"+",2,null,null,7,null,15.9]
[2,"MatsMats",null,null,null,null,null,null,null,null,1,"+",0,null,null,4,null,6.4,null,null,2,"Mats P",null,null,null,null,null,null,null,null,0,"+",3,null,null,5,null,11.7]
[3,"Kalle",null,null,null,null,null,null,null,null,2,"+",1,null,null,4,null,6,null,null,3,"Myggan",null,null,null,null,null,null,null,null,2,"+",0,null,null,3,null,10.6]
[4,"Melle",null,null,null,null,null,null," ",null,2,"+",2,null,null,7,null,5,null,null,4,"Conta",null,null,null,null,null,null,null,null,2,"+",2,null,null,7,null,7.1]
[5,"Mattias",null,null,null,null,null,null,null,null,1,"+",1,null,null,4,null,3.5,null,null,5,"Micke",null,null,null,null,null,null,null,null,2,"+",2,null,null,7,null,5.8]
[6,"Ingvar",null,null,null,null,null,null,null,null,0,"+",2,null,null,4,null,3,null,null,6,"Peter J",null,null,null,null,null,null,null,null,1,"+",1,null,null,3,null,4.7]
[7,"Benny",null,null,null,null,null,null,null,null,0,"+",0,null,null,3,null,1.5,null,null,7,"Magnus",null,null,null,null,null,null,null,null,0,"+",1,null,null,4,null,4]
[8,"Ville",null,null,null,null,null,null,null,null,0,"+",0,null,null,2,null,0,null,null,8,"Ove",null,null,null,null,null,null,null,null,2,"+",1,null,null,5,null,4]
["Summa: ",null,null,null,null,null,null,null,null," ",{"$f":"SUM(K4:K11)","v":7},"=",{"$f":"SUM(M4:M11)","v":7},null,null,{"$f":"SUM(P4:P11)","v":32},null,{"$f":"SUM(R4:R11)","v":34.700000000000003},null,null,"Summa: ",null,null,null,null,null,null,null,null," ",{"$f":"SUM(AE4:AE11)","v":12},"=",{"$f":"SUM(AG4:AG11)","v":12},null,null,{"$f":"SUM(AJ4:AJ11)","v":41},null,{"$f":"SUM(AL4:AL11)","v":63.800000000000004}]

{"sheet":"Herrtabellen 2023","index":5,"n_rows":42,"n_cols":39,"rows_kept":42,"cut":false,"hidden":false,"merged":[[41,3,46,18],[0,0,0,38],[1,1,1,16],[1,21,1,36],[2,1,2,8],[2,9,2,13],[2,14,2,16],[2,21,2,28],[2,29,2,33],[2,34,2,36],[15,1,15,16],[15,21,15,36],[29,0,29,17],[29,20,29,37],[34,3,38,18]]}
["Herrtabellen 2023"]
["RÖD","Uppdaterad 2023-10-08 (Slutlig)",null,null,null,null,null,null,null,null,null,null,null,null,null,null,null,"RÖD",2023,null,"BLÅ","Uppdaterad 2023-10-08 (Slutlig)",null,null,null,null,null,null,null,null,null,null,null,null,null,null,null,"BLÅ",2023]
["Placering","Namn",null,null,null,null,null,null,null,"Antal sistor + bommade",null,null,null,null,"Antal omgångar",null,null,"Poäng","Totplac.",null,"Placering","Namn",null,null,null,null,null,null,null,"Antal sistor + bommade",null,null,null,null,"Antal omgångar",null,null,"Poäng","Totplac."]
[1,"Magnus",null,null,null,null,null,null,null,null,6,"+",3,null,null,12,null,30,2,null,1,"Clabbe",null,null,null,null,null,null,null,null,3,"+",5,null,null,12,null,31.7,1]
[2,"Eddie",null,null,null,null,null,null,null,null,7,"+",2,null,null,12,null,28.5,3,null,2,"Kalle",null,null,null,null,null,null,null,null,6,"+",2,null,null,12,null,22.8,4]
[3,"Martin",null,null,null,null,null,null,null,null,4,"+",5,null,null,12,null,21.7,5,null,3,"Benny",null,null,null,null,null,null,null,null,3,"+",5,null,null,12,null,18.399999999999999,6]
[4,"Pär",null,null,null,null,null,null,null,null,8,"+",1,null,null,12,null,21.2,7,null,4,"Micke",null,null,null,null,null,null,null,null,3,"+",5,null,null,12,null,18.3,8]
[5,"Peter J",null,null,null,null,null,null,null,null,5,"+",4,null,null,12,null,19.8,9,null,5,"Christer",null,null,null,null,null,null,null,null,5,"+",3,null,null,12,null,18.2,10]
[6,"Morgan",null,null,null,null,null,null,null,null,3,"+",6,null,null,12,null,19.8,11,null,6,"Ville",null,null,null,null,null,null,null,null,3,"+",5,null,null,12,null,16.3,12]
[7,"Mattias",null,null,null,null,null,null,null,null,4,"+",5,null,null,12,null,18.2,13,null,7,"MatsMats",null,null,null,null,null,null,null,null,5,"+",3,null,null,12,null,14.8,14]
[8,"Myggan",null,null,null,null,null,null," ",null,3,"+",6,null,null,12,null,16.899999999999999,15,null,8,"Melle",null,null,null,null,null,null,null,null,5,"+",3,null,null,12,null,14.8,16]
[9,"Mats P",null,null,null,null,null,null,null,null,3,"+",6,null,null,12,null,16.7,17,null,9,"Ingvar",null,null,null,null,null,null,null,null,3,"+",5,null,null,12,null,13.7,18]
[10,"Conta",null,null,null,null,null,null,null,null,2,"+",7,null,null,12,null,7,19,null,10,"Peter Å",null,null,null,null,null,null,null,null,0,"+",0,null,null,12,null,0,20]
["Summa: ",null,null,null,null,null,null,null,null," ",{"$f":"SUM(K4:K13)","v":45},"=",{"$f":"SUM(M4:M13)","v":45},null,null,{"$f":"SUM(P4:P13)","v":120},null,{"$f":"SUM(R4:R13)","v":199.79999999999998},null,null,"Summa: ",null,null,null,null,null,null,null,null," ",{"$f":"SUM(AE4:AE13)","v":36},"=",{"$f":"SUM(AG4:AG13)","v":36},null,null,{"$f":"SUM(AJ4:AJ13)","v":120},null,{"$f":"SUM(AL4:AL13)","v":169}]
[]
["RÖD","Omgångar (0 singelmatcher släpar, ej mixed)",null,null,null,null,null,null,null,null,null,null,null,null,null,null,null,"RÖD",2023,null,"BLÅ","Omgångar (0 singelmatcher släpar, ej mixed)",null,null,null,null,null,null,null,null,null,null,null,null,null,null,null,"BLÅ",2023]
["Omgång",1,2,3,4,5,6,7,8,9,10,11,12,13,null,null,null,"Totalt","Släpar",null,"Omgång",1,2,3,4,5,6,7,8,9,10,11,12,13,null,null,null,"Totalt","Släpar"]
["Conta",0,0,0,3.5,0,0,0,0,0,3.5,0,0,0,null,null,null,{"$f":"SUM(B18:Q18)","v":7},"KLAR",null,"Benny",0,1,1,0,3,0.5,0,1.5,1.5,0.5,2.4,3,4,null,null,null,{"$f":"SUM(V18:AK18)","v":18.399999999999999},"KLAR"]
["Eddie",2.8,3.5,2.2000000000000002,0,1.5,3.5,3.5,3,3.5,1.5,0,3.5,0,null,null,null,28.5,"KLAR",null,"Christer",1.6,0,1.8,1.5,1.5,0,3.5,0,3.5,0.5,0.8,3.5,0,null,null,null,18.200000000000003,"KLAR"]
["Magnus",0,3.5,1.2,1,3.5,3.5,0,3.5,3.5,0,4,3.5,2.8,null,null,null,30,"KLAR",null,"Clabbe",0,3.5,2.5,3.5,3,3,1.5,3,3.5,3,1.6,0,3.6,null,null,null,31.700000000000003,"KLAR"]
["Martin",4,0,1.3,3.5,3.5,0,3.5,0,3,0,0,0.5,2.4,null,null,null,21.7,"KLAR",null,"Ingvar",0,0,0.7,1,0,3.5,3.5,0.5,0,3,0,1.5,0,null,null,null,13.7,"KLAR"]
["Mats P",0,3.5,0,0,1,0,0,0,3.5,0,3.6,3.5,1.6,null,null,null,16.7,"KLAR",null,"Kalle",2,3.5,1.3,3.5,0.5,3.5,3.5,3,0,1.5,0,0.5,0,null,null,null,22.8,"KLAR"]
["Mattias",0,3,0,1.5,0,3.5,0,3.5,0,3.5,0,0,3.2,null,null,null,18.2,"KLAR",null,"MatsMats",3.2,1.5,1.2,1.5,3,1.5,0,1.5,0,0.5,0,0.5,0.4,null,null,null,14.8,"KLAR"]
["Morgan",3.6,0,1.5,1,3.5,3.5,0,3.5,0,0,3.2,0,0,null,null,null,19.8,"KLAR",null,"Melle",0.8,1.5,0,1,0.5,0.5,0,0.5,3.5,3,0,3.5,0,null,null,null,14.8,"KLAR"]
["Myggan",0,0.5,0,3,0,0,3.5,0,3.5,1,0.4,3,2,null,null,null,16.899999999999999,"KLAR",null,"Micke",0,0,0.3,0,3.5,3,3.5,3.5,1.5,0,0,3,0,null,null,null,18.3,"KLAR"]
["Peter J",2.4,0,2.5,0.5,0,0,3.5,3.5,0,3.5,0,3.5,0.4,null,null,null,19.799999999999997,"KLAR",null,"Peter Å",0,null,null,null,null,null,null,null,null,null,null,null,null,null,null,null,0,"Avbrutit"]
["Pär",0,3.5,0,1.5,3.5,3.5,3.5,0.5,0.5,3.5,1.2,0,0,null,null,null,21.2,"KLAR",null,"Ville",0,3.5,2.5,1.5,0.5,0,0,1,1,3.5,2.8,0,0,null,null,null,16.3,"KLAR"]
[null,{"$f":"SUM(B18:B26)","v":12.8},14,8.6999999999999993,14,13,14,14,17,17,13,11.200000000000001,17.5,12.4,null,null,null,{"$f":"SUM(R18:R27)","v":199.8},null,null,null,{"$f":"SUM(V18:V26)","v":7.6000000000000005},11,8.8000000000000007,12,15,15.5,15.5,13.5,13.5,12,4.8000000000000007,15.5,8,null,null,null,{"$f":"SUM(AL18:AL27)","v":169.00000000000003}]
["Omg. klar","JA","JA","JA","JA","JA","JA","JA","JA","JA","JA","JA","JA","JA",null,null,null,null,null,null,"Omg. klar","JA","JA","JA","JA","JA","JA","JA","JA","JA","JA","JA","JA","JA"]
[]
[]
[null,null,"=","Slagspel - Gemensam omgång (De TVÅ bästa av totalt tre omgångar räknas, Markeras med GULT)"]
[]
[null,null,"=","Parspel (en sista)",null,null,"Gäller ej 2023"]
[null,null,null,"Regler parspel: Fyrboll bästboll matchspel (lagspel två och två. Varje lag väljer bästa resultatet per hål. I övrigt som Matchspel. Det lag vinner, som har fler hål upp än vad det är kvar att spela). Man spelar på sitt egna hcp och sin egen boll. 2p per spelare för det vinnande laget, 1p per spelare vid delad match. 0,5p per spelare för det lag som har bästa resultat på senast vunna hål efter 18 spelade hål."]
[]
[]
[]
[]
[]
[null,null,"=","Mixmatch (Irish greensome, två sistor)"]
[null,null,null,"Mixregler: Irish greensome, matchspel (spel två och två. Båda spelarna slår ut från varje tee. Skillnaden är att på alla par 4 och par 5 hål slås ett slag till på partnerns boll innan man väljer vilken boll man ska spela vidare på. Spelet fortsätter sedan som Foursome). Lägg ihop era slopeslag och dela med två. Blir det ojämnt avrunda neråt. Skillnaden mellan lagen i slopehcp är de hål ena laget har ett slag extra. Vinnarna hål 1-9 får per spelare 1p, sistan 0,2p. Vinnarna hål 10-18 får per spelare 1p, sistan 0,3p. Lika resultat ger 0,5p var."]

{"sheet":"Herrtabellen 2023 (Utan Pär)","index":6,"n_rows":42,"n_cols":39,"rows_kept":42,"cut":false,"hidden":false,"merged":[[41,3,46,18],[0,0,0,38],[1,1,1,16],[1,21,1,36],[2,1,2,8],[2,9,2,13],[2,14,2,16],[2,21,2,28],[2,29,2,33],[2,34,2,36],[15,1,15,16],[15,21,15,36],[29,0,29,17],[29,20,29,37],[34,3,38,18]]}
["Herrtabellen 2023"]
["RÖD","Uppdaterad 2023-10-08 (Slutlig, utan Pär)",null,null,null,null,null,null,null,null,null,null,null,null,null,null,null,"RÖD",2023,null,"BLÅ","Uppdaterad 2023-10-08 (Slutlig, utan Pär)",null,null,null,null,null,null,null,null,null,null,null,null,null,null,null,"BLÅ",2023]
["Placering","Namn",null,null,null,null,null,null,null,"Antal sistor + bommade",null,null,null,null,"Antal omgångar",null,null,"Poäng","Totplac.",null,"Placering","Namn",null,null,null,null,null,null,null,"Antal sistor + bommade",null,null,null,null,"Antal omgångar",null,null,"Poäng","Totplac."]
[1,"Magnus",null,null,null,null,null,null,null,null,6,"+",3,null,null,12,null,30,2,null,1,"Clabbe",null,null,null,null,null,null,null,null,3,"+",5,null,null,12,null,31.7,1]
[2,"Eddie",null,null,null,null,null,null,null,null,7,"+",2,null,null,12,null,28.5,3,null,2,"Kalle",null,null,null,null,null,null,null,null,6,"+",2,null,null,12,null,22.8,4]
[3,"Martin",null,null,null,null,null,null,null,null,4,"+",5,null,null,12,null,21.7,5,null,3,"Benny",null,null,null,null,null,null,null,null,3,"+",5,null,null,12,null,18.399999999999999,6]
[4,"Pär",null,null,null,null,null,null,null,null,8,"+",1,null,null,12,null,21.2,null,null,4,"Micke",null,null,null,null,null,null,null,null,3,"+",5,null,null,12,null,18.3,7]
[5,"Peter J",null,null,null,null,null,null,null,null,5,"+",4,null,null,12,null,19.8,8,null,5,"Christer",null,null,null,null,null,null,null,null,5,"+",3,null,null,12,null,18.2,9]
[6,"Morgan",null,null,null,null,null,null,null,null,3,"+",6,null,null,12,null,19.8,10,null,6,"Ville",null,null,null,null,null,null,null,null,3,"+",5,null,null,12,null,16.3,11]
[7,"Mattias",null,null,null,null,null,null,null,null,4,"+",5,null,null,12,null,18.2,12,null,7,"MatsMats",null,null,null,null,null,null,null,null,5,"+",3,null,null,12,null,14.8,13]
[8,"Myggan",null,null,null,null,null,null," ",null,3,"+",6,null,null,12,null,16.899999999999999,14,null,8,"Melle",null,null,null,null,null,null,null,null,5,"+",3,null,null,12,null,14.8,15]
[9,"Mats P",null,null,null,null,null,null,null,null,3,"+",6,null,null,12,null,16.7,16,null,9,"Ingvar",null,null,null,null,null,null,null,null,3,"+",5,null,null,12,null,13.7,17]
[10,"Conta",null,null,null,null,null,null,null,null,2,"+",7,null,null,12,null,7,18,null,10,"Peter Å",null,null,null,null,null,null,null,null,0,"+",0,null,null,12,null,0,19]
["Summa: ",null,null,null,null,null,null,null,null," ",{"$f":"SUM(K4:K13)","v":45},"=",{"$f":"SUM(M4:M13)","v":45},null,null,{"$f":"SUM(P4:P13)","v":120},null,{"$f":"SUM(R4:R13)","v":199.79999999999998},null,null,"Summa: ",null,null,null,null,null,null,null,null," ",{"$f":"SUM(AE4:AE13)","v":36},"=",{"$f":"SUM(AG4:AG13)","v":36},null,null,{"$f":"SUM(AJ4:AJ13)","v":120},null,{"$f":"SUM(AL4:AL13)","v":169}]
[]
["RÖD","Omgångar (0 singelmatcher släpar, ej mixed)",null,null,null,null,null,null,null,null,null,null,null,null,null,null,null,"RÖD",2023,null,"BLÅ","Omgångar (0 singelmatcher släpar, ej mixed)",null,null,null,null,null,null,null,null,null,null,null,null,null,null,null,"BLÅ",2023]
["Omgång",1,2,3,4,5,6,7,8,9,10,11,12,13,null,null,null,"Totalt","Släpar",null,"Omgång",1,2,3,4,5,6,7,8,9,10,11,12,13,null,null,null,"Totalt","Släpar"]
["Conta",0,0,0,3.5,0,0,0,0,0,3.5,0,0,0,null,null,null,{"$f":"SUM(B18:Q18)","v":7},"KLAR",null,"Benny",0,1,1,0,3,0.5,0,1.5,1.5,0.5,2.4,3,4,null,null,null,{"$f":"SUM(V18:AK18)","v":18.399999999999999},"KLAR"]
["Eddie",2.8,3.5,2.2000000000000002,0,1.5,3.5,3.5,3,3.5,1.5,0,3.5,0,null,null,null,28.5,"KLAR",null,"Christer",1.6,0,1.8,1.5,1.5,0,3.5,0,3.5,0.5,0.8,3.5,0,null,null,null,18.200000000000003,"KLAR"]
["Magnus",0,3.5,1.2,1,3.5,3.5,0,3.5,3.5,0,4,3.5,2.8,null,null,null,30,"KLAR",null,"Clabbe",0,3.5,2.5,3.5,3,3,1.5,3,3.5,3,1.6,0,3.6,null,null,null,31.700000000000003,"KLAR"]
["Martin",4,0,1.3,3.5,3.5,0,3.5,0,3,0,0,0.5,2.4,null,null,null,21.7,"KLAR",null,"Ingvar",0,0,0.7,1,0,3.5,3.5,0.5,0,3,0,1.5,0,null,null,null,13.7,"KLAR"]
["Mats P",0,3.5,0,0,1,0,0,0,3.5,0,3.6,3.5,1.6,null,null,null,16.7,"KLAR",null,"Kalle",2,3.5,1.3,3.5,0.5,3.5,3.5,3,0,1.5,0,0.5,0,null,null,null,22.8,"KLAR"]
["Mattias",0,3,0,1.5,0,3.5,0,3.5,0,3.5,0,0,3.2,null,null,null,18.2,"KLAR",null,"MatsMats",3.2,1.5,1.2,1.5,3,1.5,0,1.5,0,0.5,0,0.5,0.4,null,null,null,14.8,"KLAR"]
["Morgan",3.6,0,1.5,1,3.5,3.5,0,3.5,0,0,3.2,0,0,null,null,null,19.8,"KLAR",null,"Melle",0.8,1.5,0,1,0.5,0.5,0,0.5,3.5,3,0,3.5,0,null,null,null,14.8,"KLAR"]
["Myggan",0,0.5,0,3,0,0,3.5,0,3.5,1,0.4,3,2,null,null,null,16.899999999999999,"KLAR",null,"Micke",0,0,0.3,0,3.5,3,3.5,3.5,1.5,0,0,3,0,null,null,null,18.3,"KLAR"]
["Peter J",2.4,0,2.5,0.5,0,0,3.5,3.5,0,3.5,0,3.5,0.4,null,null,null,19.799999999999997,"KLAR",null,"Peter Å",0,null,null,null,null,null,null,null,null,null,null,null,null,null,null,null,0,"Avbrutit"]
["Pär",0,3.5,0,1.5,3.5,3.5,3.5,0.5,0.5,3.5,1.2,0,0,null,null,null,21.2,"KLAR",null,"Ville",0,3.5,2.5,1.5,0.5,0,0,1,1,3.5,2.8,0,0,null,null,null,16.3,"KLAR"]
[null,{"$f":"SUM(B18:B26)","v":12.8},14,8.6999999999999993,14,13,14,14,17,17,13,11.200000000000001,17.5,12.4,null,null,null,{"$f":"SUM(R18:R27)","v":199.8},null,null,null,{"$f":"SUM(V18:V26)","v":7.6000000000000005},11,8.8000000000000007,12,15,15.5,15.5,13.5,13.5,12,4.8000000000000007,15.5,8,null,null,null,{"$f":"SUM(AL18:AL27)","v":169.00000000000003}]
["Omg. klar","JA","JA","JA","JA","JA","JA","JA","JA","JA","JA","JA","JA","JA",null,null,null,null,null,null,"Omg. klar","JA","JA","JA","JA","JA","JA","JA","JA","JA","JA","JA","JA","JA"]
[]
[]
[null,null,"=","Slagspel - Gemensam omgång (De TVÅ bästa av totalt tre omgångar räknas, Markeras med GULT)"]
[]
[null,null,"=","Parspel (en sista)",null,null,"Gäller ej 2023"]
[null,null,null,"Regler parspel: Fyrboll bästboll matchspel (lagspel två och två. Varje lag väljer bästa resultatet per hål. I övrigt som Matchspel. Det lag vinner, som har fler hål upp än vad det är kvar att spela). Man spelar på sitt egna hcp och sin egen boll. 2p per spelare för det vinnande laget, 1p per spelare vid delad match. 0,5p per spelare för det lag som har bästa resultat på senast vunna hål efter 18 spelade hål."]
[]
[]
[]
[]
[]
[null,null,"=","Mixmatch (Irish greensome, två sistor)"]
[null,null,null,"Mixregler: Irish greensome, matchspel (spel två och två. Båda spelarna slår ut från varje tee. Skillnaden är att på alla par 4 och par 5 hål slås ett slag till på partnerns boll innan man väljer vilken boll man ska spela vidare på. Spelet fortsätter sedan som Foursome). Lägg ihop era slopeslag och dela med två. Blir det ojämnt avrunda neråt. Skillnaden mellan lagen i slopehcp är de hål ena laget har ett slag extra. Vinnarna hål 1-9 får per spelare 1p, sistan 0,2p. Vinnarna hål 10-18 får per spelare 1p, sistan 0,3p. Lika resultat ger 0,5p var."]

{"sheet":"Herrtabellen 2023 (Alt. vers)","index":7,"n_rows":42,"n_cols":39,"rows_kept":42,"cut":false,"hidden":false,"merged":[[15,1,15,16],[15,21,15,36],[29,0,29,17],[29,20,29,37],[34,3,38,18],[21,34,21,36],[23,34,23,36],[25,34,25,36],[26,34,26,36],[26,14,26,16],[41,3,46,18],[16,14,16,16],[16,34,16,36],[19,34,19,36],[19,14,19,16],[0,0,0,38],[1,1,1,16],[1,21,1,36],[2,1,2,8],[2,9,2,13],[2,14,2,16],[2,21,2,28],[2,29,2,33],[2,34,2,36]]}
["Herrtabellen 2023"]
["RÖD","Uppdaterad 2023-10-08",null,null,null,null,null,null,null,null,null,null,null,null,null,null,null,"RÖD",2023,null,"BLÅ","Uppdaterad 2023-10-08",null,null,null,null,null,null,null,null,null,null,null,null,null,null,null,"BLÅ",2023]
["Placering","Namn",null,null,null,null,null,null,null,"Antal sistor + bommade",null,null,null,null,"Antal omgångar",null,null,"Poäng","Totplac.",null,"Placering","Namn",null,null,null,null,null,null,null,"Antal sistor + bommade",null,null,null,null,"Antal omgångar",null,null,"Poäng","Totplac."]
[1,"Magnus",null,null,null,null,null,null,null,null,6,"+",3,null,null,12,null,30,2,null,1,"Clabbe",null,null,null,null,null,null,null,null,3,"+",5,null,null,12,null,33.700000000000003,1]
[2,"Eddie",null,null,null,null,null,null,null,null,7,"+",2,null,null,12,null,28.5,3,null,2,"Kalle",null,null,null,null,null,null,null,null,6,"+",2,null,null,12,null,24.8,4]
[3,"Martin",null,null,null,null,null,null,null,null,4,"+",5,null,null,12,null,21.7,5,null,3,"Benny",null,null,null,null,null,null,null,null,3,"+",5,null,null,12,null,20.399999999999999,6]
[4,"Pär",null,null,null,null,null,null,null,null,8,"+",1,null,null,12,null,21.2,7,null,4,"Micke",null,null,null,null,null,null,null,null,3,"+",5,null,null,12,null,20.3,8]
[5,"Peter J",null,null,null,null,null,null,null,null,5,"+",4,null,null,12,null,19.8,10,null,5,"Christer",null,null,null,null,null,null,null,null,5,"+",3,null,null,12,null,20.2,9]
[6,"Morgan",null,null,null,null,null,null,null,null,3,"+",6,null,null,12,null,19.8,11,null,6,"Ville",null,null,null,null,null,null,null,null,3,"+",5,null,null,12,null,18.3,12]
[7,"Mattias",null,null,null,null,null,null,null,null,4,"+",5,null,null,12,null,18.2,13,null,7,"MatsMats",null,null,null,null,null,null,null,null,5,"+",3,null,null,12,null,16.8,14]
[8,"Myggan",null,null,null,null,null,null," ",null,3,"+",6,null,null,12,null,16.899999999999999,15,null,8,"Melle",null,null,null,null,null,null,null,null,5,"+",3,null,null,12,null,16.8,16]
[9,"Mats P",null,null,null,null,null,null,null,null,3,"+",6,null,null,12,null,16.7,17,null,9,"Ingvar",null,null,null,null,null,null,null,null,3,"+",5,null,null,12,null,15.7,18]
[10,"Conta",null,null,null,null,null,null,null,null,2,"+",7,null,null,12,null,7,19,null,10,"Peter Å",null,null,null,null,null,null,null,null,0,"+",0,null,null,12,null,0,20]
["Summa: ",null,null,null,null,null,null,null,null," ",{"$f":"SUM(K4:K13)","v":45},"=",{"$f":"SUM(M4:M13)","v":45},null,null,{"$f":"SUM(P4:P13)","v":120},null,{"$f":"SUM(R4:R13)","v":199.79999999999998},null,null,"Summa: ",null,null,null,null,null,null,null,null," ",{"$f":"SUM(AE4:AE13)","v":36},"=",{"$f":"SUM(AG4:AG13)","v":36},null,null,{"$f":"SUM(AJ4:AJ13)","v":120},null,{"$f":"SUM(AL4:AL13)","v":187.00000000000003}]
[]
["RÖD","Omgångar (0 singelmatcher släpar, ej mixed)",null,null,null,null,null,null,null,null,null,null,null,null,null,null,null,"RÖD",2023,null,"BLÅ","Omgångar (0 singelmatcher släpar, ej mixed)",null,null,null,null,null,null,null,null,null,null,null,null,null,null,null,"BLÅ",2023]
["Omgång",1,2,3,4,5,6,7,8,9,10,11,12,13,"Gem omg",null,null,"Totalt","Släpar",null,"Omgång",1,2,3,4,5,6,7,8,9,10,11,12,13,"Gem omg",null,null,"Totalt","Släpar"]
["Conta",0,0,0,3.5,0,0,0,0,0,3.5,0,0,0,{"$f":"B28","v":12.8},{"$f":"L28","v":11.200000000000001},{"$f":"N28","v":12.4},{"$f":"SUM(B18:N18)","v":7},"KLAR",null,"Benny",0,1,1,0,3,0.5,0,3.5,1.5,0.5,2.4,3,4,{"$f":"V28","v":7.6000000000000005},{"$f":"AF28","v":4.8000000000000007},{"$f":"AH28","v":8},{"$f":"SUM(V18:AH18)","v":20.399999999999999},"KLAR"]
["Eddie",2.8,3.5,2.2000000000000002,0,1.5,3.5,3.5,3,3.5,1.5,0,3.5,0,null,null,null,{"$f":"SUM(B19:N19)","v":28.5},"KLAR",null,"Christer",1.6,0,1.8,1.5,3.5,0,3.5,0,3.5,0.5,0.8,3.5,0,null,null,null,{"$f":"SUM(V19:AH19)","v":20.2},"KLAR"]
["Magnus",0,3.5,1.2,1,3.5,3.5,0,3.5,3.5,0,4,3.5,2.8,{"$f":"O18+P18+Q18","v":36.4},null,null,30,"KLAR",null,"Clabbe",0,3.5,2.5,3.5,3,3,3.5,3,3.5,3,1.6,0,3.6,{"$f":"AI18+AJ18+AK18","v":20.400000000000002},null,null,33.700000000000003,"KLAR"]
["Martin",4,0,1.3,3.5,3.5,0,3.5,0,3,0,0,0.5,2.4,null,null,null,21.7,"KLAR",null,"Ingvar",0,0,0.7,1,0,3.5,3.5,0.5,0,3,0,3.5,0,36.4,null,20.399999999999999,15.7,"KLAR"]
["Mats P",0,3.5,0,0,1,0,0,0,3.5,0,3.6,3.5,1.6,null,null,null,16.7,"KLAR",null,"Kalle",2,3.5,1.3,3.5,0.5,3.5,3.5,3,0,3.5,0,0.5,0,{"$f":"O20-AI20","v":15.999999999999996},null,null,24.8,"KLAR"]
["Mattias",0,3,0,1.5,0,3.5,0,3.5,0,3.5,0,0,3.2,null,null,null,18.2,"KLAR",null,"MatsMats",3.2,1.5,1.2,1.5,3,3.5,0,1.5,0,0.5,0,0.5,0.4,199.8,null,187,16.799999999999997,"KLAR"]
["Morgan",3.6,0,1.5,1,3.5,3.5,0,3.5,0,0,3.2,0,0,null,null,null,19.8,"KLAR",null,"Melle",0.8,3.5,0,1,0.5,0.5,0,0.5,3.5,3,0,3.5,0,{"$f":"R14-AL14","v":12.799999999999955},null,null,16.8,"KLAR"]
["Myggan",0,0.5,0,3,0,0,3.5,0,3.5,1,0.4,3,2,null,null,null,16.899999999999999,"KLAR",null,"Micke",0,0,0.3,0,3.5,3,3.5,3.5,3.5,0,0,3,0,16,null,12.8,20.3,"KLAR"]
["Peter J",2.4,0,2.5,0.5,0,0,3.5,3.5,0,3.5,0,3.5,0.4,null,null,null,19.799999999999997,"KLAR",null,"Peter Å",0,null,null,null,null,null,null,null,null,null,null,null,null,{"$f":"AI25-AK25","v":3.1999999999999993},null,null,0,"Avbrutit"]
["Pär",0,3.5,0,1.5,3.5,3.5,3.5,0.5,0.5,3.5,1.2,0,0,"4 st oavgjorda",null,null,21.2,"KLAR",null,"Ville",0,3.5,2.5,3.5,0.5,0,0,1,1,3.5,2.8,0,0,"5 st oavgjorda",null,null,18.3,"KLAR"]
[null,{"$f":"SUM(B18:B26)","v":12.8},14,8.6999999999999993,14,13,14,14,17,17,13,11.200000000000001,17.5,12.4,null,null,null,{"$f":"SUM(R18:R27)","v":199.8},null,null,null,{"$f":"SUM(V18:V26)","v":7.6000000000000005},13,8.8000000000000007,12,17,17.5,17.5,15.5,15.5,14,4.8000000000000007,17.5,8,null,null,null,{"$f":"SUM(AL18:AL27)","v":187.00000000000003}]
["Omg. klar","JA","JA","JA","JA","JA","JA","JA","JA","JA","JA","JA","JA","JA",null,null,null,null,null,null,"Omg. klar","JA","JA","JA","JA","JA","JA","JA","JA","JA","JA","JA","JA","JA"]
[]
[]
[null,null,"=","Slagspel - Gemensam omgång (De TVÅ bästa av totalt tre omgångar räknas, Markeras med GULT)"]
[]
[null,null,"=","Parspel (en sista)",null,null,"Gäller ej 2023"]
[null,null,null,"Regler parspel: Fyrboll bästboll matchspel (lagspel två och två. Varje lag väljer bästa resultatet per hål. I övrigt som Matchspel. Det lag vinner, som har fler hål upp än vad det är kvar att spela). Man spelar på sitt egna hcp och sin egen boll. 2p per spelare för det vinnande laget, 1p per spelare vid delad match. 0,5p per spelare för det lag som har bästa resultat på senast vunna hål efter 18 spelade hål."]
[]
[]
[]
[]
[]
[null,null,"=","Mixmatch (Irish greensome, två sistor)"]
[null,null,null,"Mixregler: Irish greensome, matchspel (spel två och två. Båda spelarna slår ut från varje tee. Skillnaden är att på alla par 4 och par 5 hål slås ett slag till på partnerns boll innan man väljer vilken boll man ska spela vidare på. Spelet fortsätter sedan som Foursome). Lägg ihop era slopeslag och dela med två. Blir det ojämnt avrunda neråt. Skillnaden mellan lagen i slopehcp är de hål ena laget har ett slag extra. Vinnarna hål 1-9 får per spelare 1p, sistan 0,2p. Vinnarna hål 10-18 får per spelare 1p, sistan 0,3p. Lika resultat ger 0,5p var."]

{"sheet":"B-side 2022","index":8,"n_rows":3,"n_cols":39,"rows_kept":3,"cut":false,"hidden":false,"merged":[[0,0,0,38],[1,1,1,16],[1,21,1,36],[2,1,2,8],[2,9,2,13],[2,14,2,16],[2,21,2,28],[2,29,2,33],[2,34,2,36]]}
["Herrtabellen 2023 B-side"]
["RÖD","Uppdaterad 2022-05-06",null,null,null,null,null,null,null,null,null,null,null,null,null,null,null,"RÖD",2022,null,"BLÅ","Uppdaterad 2022-05-06",null,null,null,null,null,null,null,null,null,null,null,null,null,null,null,"BLÅ",2022]
["Placering","Namn",null,null,null,null,null,null,null,"Antal sistor + bommade",null,null,null,null,"Antal omgångar",null,null,"Poäng","Totplac.",null,"Placering","Namn",null,null,null,null,null,null,null,"Antal sistor + bommade",null,null,null,null,"Antal omgångar",null,null,"Poäng","Totplac."]

{"sheet":"Slutspelsgrupper 2023","index":9,"n_rows":18,"n_cols":34,"rows_kept":18,"cut":false,"hidden":false,"merged":[[12,27,12,28],[12,29,12,30],[12,31,12,32],[11,25,11,34],[12,33,12,34],[11,1,11,8],[11,13,11,20],[12,1,12,8],[12,13,12,20],[12,25,12,26],[4,31,4,32],[0,0,0,34],[2,0,2,22],[2,25,2,33],[3,1,3,8],[3,13,3,20],[3,25,3,34],[4,33,4,34],[4,1,4,8],[4,13,4,20],[4,25,4,26],[4,27,4,28],[4,29,4,30],[5,25,5,26],[5,27,5,28],[5,29,5,30],[5,31,5,32],[5,33,5,34],[6,25,6,26],[6,27,6,28],[6,29,6,30],[6,31,6,32],[6,33,6,34],[7,25,7,26],[7,27,7,28],[7,29,7,30],[7,31,7,32],[7,33,7,34],[8,33,8,34],[8,31,8,32],[8,29,8,30],[8,27,8,28],[8,25,8,26],[13,25,13,26],[13,27,13,28],[13,29,13,30],[13,31,13,32],[13,33,13,34],[14,25,14,26],[14,27,14,28],[14,29,14,30],[14,31,14,32],[14,33,14,34],[15,25,15,26],[15,27,15,28],[15,29,15,30],[15,31,15,32],[15,33,15,34],[16,25,16,26],[16,27,16,28],[16,29,16,30],[16,31,16,32],[16,33,16,34]]}
["Herrtabellen 2023 - Slutställning"]
[]
["SLUTSPELSGRUPPER 2023"]
[1,"Grupp 1",null,null,null,null,null,null,null,1,2023,null,2,"Grupp 2",null,null,null,null,null,null,null,2,2023,null,null,"BOLLAR - DAG 1 (Spanien)"]
[null,"Namn",null,null,null,null,null,null,null,null,"Totplac.",null,null,"Namn",null,null,null,null,null,null,null,null,"Totplac.",null,null,"BOLL 1",null,"BOLL 2",null,"BOLL 3",null,"BOLL 4",null,"BOLL 5"]
[1,"Clabbe",null,null,null,null,null,null,null,null,1,null,1,"Benny",null,null,null,null,null,null,null,null,6]
[2,"Magnus",null,null,null,null,null,null,null,null,2,null,2,"Micke",null,null,null,null,null,null,null,null,7]
[3,"Eddie ",null,null,null,null,null,null,null,null,3,null,3,"Peter J",null,null,null,null,null,null,null,null,8]
[4,"Kalle",null,null,null,null,null,null,null,null,4,null,4,"Christer",null,null,null,null,null,null,null,null,9]
[5,"Martin",null,null,null,null,null,null,null,null,5,null,5,"Morgan",null,null,null,null,null,null,null,null,10]
[]
[3,"Grupp 3",null,null,null,null,null,null,null,3,2023,null,4,"Grupp 4",null,null,null,null,null,null,null,4,2023,null,null,"BOLLAR - DAG 2 (Spanien)"]
[null,"Namn",null,null,null,null,null,null,null,null,"Totplac.",null,null,"Namn",null,null,null,null,null,null,null,null,"Totplac.",null,null,"BOLL 1",null,"BOLL 2",null,"BOLL 3",null,"BOLL 4",null,"BOLL 5"]
[1,"Ville",null,null,null,null,null,null,null,null,11,null,1,"Mats P",null,null,null,null,null,null,null,null,16]
[2,"Mattias",null,null,null,null,null,null,null,null,12,null,2,"Ingvar",null,null,null,null,null,null,null,null,17]
[3,"MatsMats",null,null,null,null,null,null,null,null,13,null,3,"Conta",null,null,null,null,null,null,null,null,18]
[4,"Myggan",null,null,null,null,null,null,null,null,14,null,4,"Peter Å",null,null,null,null,null,null,null,null,19]
[5,"Melle",null,null,null,null,null,null,null,null,15,null,5,"Ronnie / KåGe",null,null,null,null,null,null,null,null,20]

{"sheet":"Slutspel dag 1o2 2023","index":10,"n_rows":22,"n_cols":14,"rows_kept":22,"cut":false,"hidden":false,"merged":[[0,0,0,13],[1,0,1,13]]}
["Slutspel Spanien 2023"]
["STÄLLNING"]
["Namn","Fredag","Extra grunds","Total","Placering",null,"Lördag",null,"Tutti","Placering",null,"Namn","Tot poäng","Placering"]
["Benny",null,null,{"$f":"SUM(B4:C4)","v":0},null,null,null,null,{"$f":"B4+G4","v":0},null,null,null,null,1]
["Christer",null,null,{"$f":"SUM(B5:C5)","v":0},null,null,null,null,0,null,null,null,null,2]
["Conta",null,null,0,null,null,null,null,0,null,null,null,null,3]
["Ingvar",null,null,0,null,null,null,null,0,null,null,null,null,4]
["Mats P",null,null,0,null,null,null,null,0,null,null,null,null,6]
["MatsMats",null,null,0,null,null,null,null,0,null,null,null,null,7]
["Mattias",null,null,0,null,null,null,null,0,null,null,null,null,8]
["Melle",null,null,0,null,null,null,null,0,null,null,null,null,9]
["Micke",null,null,0,null,null,null,null,0,null,null,null,null,10]
["Morgan",null,null,0,null,null,null,null,0,null,null,null,null,11]
["Myggan",null,null,0,null,null,null,null,0,null,null,null,null,12]
["Ove",null,null,0,null,null,null,null,0,null,null,null,null,13]
["Peter J",null,null,0,null,null,null,null,0,null,null,null,null,14]
["Peter Å",null,null,0,null,null,null,null,0,null,null,null,null,15]
["Pillen",null,null,0,null,null,null,null,0,null,null,null,null,16]
["Ville",null,null,0,null,null,null,null,0,null,null,null,null,17]
["Robin",null,null,{"$f":"SUM(B20:C20)","v":0},null,null,null,null,0,null,null,null,null,18]
["Nicke",null,null,0,null,null,null,null,0,null,null,null,null,19]
[null,null,null,null,null,null,null,null,0,null,null,null,null,20]

{"sheet":"Slutspel söndag 22","index":11,"n_rows":26,"n_cols":8,"rows_kept":26,"cut":false,"hidden":false,"merged":[[1,2,1,7],[3,2,3,3]]}
[]
[null,null,"SPANIEN - \"SÖNDAGSTÄVLING\" 2023"]
[]
[null,null,"Spelarpar Söndag",null,"Kostnad","Ägare","Poäng","Placering"]
[]
[null,"FF_1"]
[]
[null,"FF_2"]
[]
[null,1]
[]
[null,2]
[]
[null,3]
[]
[null,4]
[]
[null,5]
[]
[null,6]
[]
[null,7]
[]
[null,8]
[]
[null,null,null,"Tutti",{"$f":"SUM(E5:E24)","v":0}]

{"sheet":"Sutspel 2021","index":12,"n_rows":48,"n_cols":34,"rows_kept":48,"cut":false,"hidden":false,"merged":[[4,1,4,8],[4,12,4,19],[4,22,4,28],[4,30,4,31],[5,1,5,7],[5,12,5,18],[5,22,5,28],[0,0,0,33],[2,0,2,20],[2,22,2,28],[2,30,2,33],[3,0,3,9],[3,11,3,20],[6,1,6,3],[6,5,6,7],[6,12,6,14],[6,16,6,18],[6,27,6,28],[7,1,7,3],[7,5,7,7],[7,12,7,14],[7,16,7,18],[7,27,7,28],[8,1,8,3],[8,5,8,7],[8,12,8,14],[8,16,8,18],[8,27,8,28],[9,1,9,3],[9,5,9,7],[9,12,9,14],[9,16,9,18],[9,27,9,28],[13,1,13,8],[13,12,13,19],[13,22,13,28],[14,1,14,7],[14,12,14,18],[14,22,14,28],[10,1,10,3],[10,5,10,7],[10,12,10,14],[10,16,10,18],[10,27,10,28],[11,1,11,3],[11,5,11,7],[11,12,11,14],[11,16,11,18],[15,1,15,3],[15,5,15,7],[15,12,15,14],[15,16,15,18],[15,27,15,28],[16,1,16,3],[16,5,16,7],[16,12,16,14],[16,16,16,18],[16,27,16,28],[17,1,17,3],[17,5,17,7],[17,12,17,14],[17,16,17,18],[17,27,17,28],[18,1,18,3],[18,5,18,7],[18,12,18,14],[18,16,18,18],[18,27,18,28],[22,22,22,28],[23,1,23,7],[23,12,23,18],[23,22,23,28],[19,1,19,3],[19,5,19,7],[19,12,19,14],[19,16,19,18],[19,27,19,28],[20,1,20,3],[20,5,20,7],[20,12,20,14],[20,16,20,18],[24,1,24,3],[24,5,24,7],[24,12,24,14],[24,16,24,18],[25,1,25,3],[25,5,25,7],[25,12,25,14],[25,16,25,18],[22,1,22,8],[22,12,22,19],[28,1,28,3],[28,5,28,7],[28,12,28,14],[28,16,28,18],[29,1,29,3],[29,5,29,7],[29,12,29,14],[29,16,29,18],[26,1,26,3],[26,5,26,7],[26,12,26,14],[26,16,26,18],[27,1,27,3],[27,5,27,7],[27,12,27,14],[27,16,27,18],[34,1,34,3],[34,5,34,7],[34,12,34,14],[34,16,34,18],[35,1,35,3],[35,5,35,7],[35,12,35,14],[35,16,35,18],[31,1,31,8],[31,12,31,19],[32,1,32,7],[32,12,32,18],[33,1,33,3],[33,5,33,7],[33,12,33,14],[33,16,33,18],[38,1,38,3],[38,5,38,7],[38,12,38,14],[38,16,38,18],[40,1,40,8],[40,12,40,19],[36,1,36,3],[36,5,36,7],[36,12,36,14],[36,16,36,18],[37,1,37,3],[37,5,37,7],[37,12,37,14],[37,16,37,18],[43,1,43,3],[43,5,43,7],[43,12,43,14],[43,16,43,18],[44,1,44,3],[44,5,44,7],[44,12,44,14],[44,16,44,18],[41,1,41,7],[41,12,41,18],[42,1,42,3],[42,5,42,7],[42,12,42,14],[42,16,42,18],[47,1,47,3],[47,5,47,7],[47,12,47,14],[47,16,47,18],[45,1,45,3],[45,5,45,7],[45,12,45,14],[45,16,45,18],[46,1,46,3],[46,5,46,7],[46,12,46,14],[46,16,46,18]]}
["Herrtabellen 2023 - Slutspel - Matchresultat (Skall uppdateras senare)"]
[]
["SLUTSPELSMATCHER",null,null,null,null,null,null,null,null,null,null,null,null,null,null,null,null,null,null,null,null,null,"SLUTSPEL 2023",null,null,null,null,null,null,null,"SÖNDAGSTÄVLING"]
["FREDAG",null,null,null,null,null,null,null,null,null,null,"LÖRDAG"]
[1,"Boll 1",null,null,null,null,null,null,null,1,null,1,"Boll 1",null,null,null,null,null,null,null,1,null,null,null,null,null,null,null,null,null,"Spelarpar Söndag",null,"Poäng","Placering"]
["Hål","Match",null,null,null,null,null,null,"Resultat","Poäng",null,"Hål","Match",null,null,null,null,null,null,"Resultat","Poäng",null,"BOLLAR - FREDAG",null,null,null,null,null,null,null,"X","Y"]
["1-6",null,null,null,"-",null,null,null,"-",null,null,"1-6",null,null,null,"-",null,null,null,"-",null,null,"BOLL 1","BOLL 2","BOLL 3","BOLL 4","BOLL 5","Grupp",null,null,"X","Y"]
["1-6",null,null,null,"-",null,null,null,"-",null,null,"1-6",null,null,null,"-",null,null,null,"-",null,null,null,null,null,null,null,1]
["7-12",null,null,null,"-",null,null,null,"-",null,null,"7-12",null,null,null,"-",null,null,null,"-",null,null,null,null,null,null,null,2]
["7-12",null,null,null,"-",null,null,null,"-",null,null,"7-12",null,null,null,"-",null,null,null,"-",null,null,null,null,null,null,null,3,null,null,"X","Y"]
["13-18",null,null,null,"-",null,null,null,"-",null,null,"13-18",null,null,null,"-",null,null,null,"-",null,null,null,null,null,null,null,4]
["13-18",null,null,null,"-",null,null,null,"-",null,null,"13-18",null,null,null,"-",null,null,null,"-",null,null,null,null,null,null,null,null,null,null,"X","Y"]
[]
[2,"Boll 2",null,null,null,null,null,null,null,2,null,2,"Boll 2",null,null,null,null,null,null,null,2,null,null,null,null,null,null,null,null,null,"X","Y"]
["Hål","Match",null,null,null,null,null,null,"Resultat","Poäng",null,"Hål","Match",null,null,null,null,null,null,"Resultat","Poäng",null,"BOLLAR - LÖRDAG"]
["1-6",null,null,null,"-",null,null,null,"-",null,null,"1-6",null,null,null,"-",null,null,null,"-",null,null,"BOLL 1","BOLL 2","BOLL 3","BOLL 4","BOLL 5","Grupp",null,null,"X","Y"]
["1-6",null,null,null,"-",null,null,null,"-",null,null,"1-6",null,null,null,"-",null,null,null,"-",null,null,null,null,null,null,null,1]
["7-12",null,null,null,"-",null,null,null,"-",null,null,"7-12",null,null,null,"-",null,null,null,"-",null,null,null,null,null,null,null,2,null,null,"X","Y"]
["7-12",null,null,null,"-",null,null,null,"-",null,null,"7-12",null,null,null,"-",null,null,null,"-",null,null,null,null,null,null,null,3]
["13-18",null,null,null,"-",null,null,null,"-",null,null,"13-18",null,null,null,"-",null,null,null,"-",null,null,null,null,null,null,null,4,null,null,"X","Y"]
["13-18",null,null,null,"-",null,null,null,"-",null,null,"13-18",null,null,null,"-",null,null,null,"-"]
[null,null,null,null,null,null,null,null,null,null,null,null,null,null,null,null,null,null,null,null,null,null,null,null,null,null,null,null,null,null,"X","Y"]
[3,"Boll 3",null,null,null,null,null,null,null,3,null,3,"Boll 3",null,null,null,null,null,null,null,3,null,"SPANIEN 2023"]
["Hål","Match",null,null,null,null,null,null,"Resultat","Poäng",null,"Hål","Match",null,null,null,null,null,null,"Resultat","Poäng",null,"STÄLLNING",null,null,null,null,null,null,null,"X","Y"]
["1-6",null,null,null,"-",null,null,null,"-",null,null,"1-6",null,null,null,"-",null,null,null,"-",null,null,"Fredag","Poäng","Lördag","Poäng","Tutti","Tot poäng","Placering"]
["1-6",null,null,null,"-",null,null,null,"-",null,null,"1-6",null,null,null,"-",null,null,null,"-",null,null,null,null,null,null,null,null,1]
["7-12",null,null,null,"-",null,null,null,"-",null,null,"7-12",null,null,null,"-",null,null,null,"-",null,null,null,null,null,null,null,null,2]
["7-12",null,null,null,"-",null,null,null,"-",null,null,"7-12",null,null,null,"-",null,null,null,"-",null,null,null,null,null,null,null,null,3]
["13-18",null,null,null,"-",null,null,null,"-",null,null,"13-18",null,null,null,"-",null,null,null,"-",null,null,null,null,null,null,null,null,4]
["13-18",null,null,null,"-",null,null,null,"-",null,null,"13-18",null,null,null,"-",null,null,null,"-",null,null,null,null,null,null,null,null,5]
[null,null,null,null,null,null,null,null,null,null,null,null,null,null,null,null,null,null,null,null,null,null,null,null,null,null,null,null,6]
[4,"Boll 4",null,null,null,null,null,null,null,4,null,4,"Boll 4",null,null,null,null,null,null,null,4,null,null,null,null,null,null,null,7]
["Hål","Match",null,null,null,null,null,null,"Resultat","Poäng",null,"Hål","Match",null,null,null,null,null,null,"Resultat","Poäng",null,null,null,null,null,null,null,8]
["1-6",null,null,null,"-",null,null,null,"-",null,null,"1-6",null,null,null,"-",null,null,null,"-",null,null,null,null,null,null,null,null,9]
["1-6",null,null,null,"-",null,null,null,"-",null,null,"1-6",null,null,null,"-",null,null,null,"-",null,null,null,null,null,null,null,null,10]
["7-12",null,null,null,"-",null,null,null,"-",null,null,"7-12",null,null,null,"-",null,null,null,"-",null,null,null,null,null,null,null,null,11]
["7-12",null,null,null,"-",null,null,null,"-",null,null,"7-12",null,null,null,"-",null,null,null,"-",null,null,null,null,null,null,null,null,12]
["13-18",null,null,null,"-",null,null,null,"-",null,null,"13-18",null,null,null,"-",null,null,null,"-",null,null,null,null,null,null,null,null,13]
["13-18",null,null,null,"-",null,null,null,"-",null,null,"13-18",null,null,null,"-",null,null,null,"-",null,null,null,null,null,null,null,null,14]
[null,null,null,null,null,null,null,null,null,null,null,null,null,null,null,null,null,null,null,null,null,null,null,null,null,null,null,null,15]
[5,"Boll 5",null,null,null,null,null,null,null,5,null,5,"Boll 5",null,null,null,null,null,null,null,5,null,null,null,null,null,null,null,16]
["Hål","Match",null,null,null,null,null,null,"Resultat","Poäng",null,"Hål","Match",null,null,null,null,null,null,"Resultat","Poäng",null,null,null,null,null,null,null,17]
["1-6",null,null,null,"-",null,null,null,"-",null,null,"1-6",null,null,null,"-",null,null,null,"-",null,null,null,null,null,null,null,null,18]
["1-6",null,null,null,"-",null,null,null,"-",null,null,"1-6",null,null,null,"-",null,null,null,"-",null,null,null,null,null,null,null,null,19]
["7-12",null,null,null,"-",null,null,null,"-",null,null,"7-12",null,null,null,"-",null,null,null,"-",null,null,null,null,null,null,null,null,20]
["7-12",null,null,null,"-",null,null,null,"-",null,null,"7-12",null,null,null,"-",null,null,null,"-"]
["13-18",null,null,null,"-",null,null,null,"-",null,null,"13-18",null,null,null,"-",null,null,null,"-"]
["13-18",null,null,null,"-",null,null,null,"-",null,null,"13-18",null,null,null,"-",null,null,null,"-"]

{"sheet":"Herrtabellen 2022","index":13,"n_rows":41,"n_cols":39,"rows_kept":41,"cut":false,"hidden":false,"merged":[[1,1,1,16],[1,21,1,36],[0,0,0,38],[33,3,37,18],[40,3,45,18],[2,34,2,36],[2,29,2,33],[2,21,2,28],[2,1,2,8],[2,9,2,13],[2,14,2,16],[15,1,15,16],[15,21,15,36],[28,0,28,17],[28,20,28,37]]}
["Herrtabellen 2022 - Slutlig"]
["RÖD","Uppdaterad 2022-09-18 (Slutlig)",null,null,null,null,null,null,null,null,null,null,null,null,null,null,null,"RÖD",2022,null,"BLÅ","Uppdaterad 2022-09-18 (Slutlig)",null,null,null,null,null,null,null,null,null,null,null,null,null,null,null,"BLÅ",2022]
["Placering","Namn",null,null,null,null,null,null,null,"Antal sistor + bommade",null,null,null,null,"Antal omgångar",null,null,"Poäng","Totplac.",null,"Placering","Namn",null,null,null,null,null,null,null,"Antal sistor + bommade",null,null,null,null,"Antal omgångar",null,null,"Poäng","Totplac."]
[1,"Mattias",null,null,null,null,null,null,null,null,5,"+",3,null,null,14,null,27.3,2,null,1,"Pillen",null,null,null,null,null,null,null,null,2,"+",6,null,null,14,null,29.7,1]
[2,"Peter Å",null,null,null,null,null,null,null,null,4,"+",3,null,null,14,null,25.7,3,null,2,"Mats P",null,null,null,null,null,null,null,null,6,"+",2,null,null,14,null,23.3,4]
[3,"Micke",null,null,null,null,null,null,null,null,4,"+",4,null,null,14,null,25.2,5,null,3,"Myggan",null,null,null,null,null,null,null,null,4,"+",4,null,null,14,null,23,6]
[4,"MatsMats",null,null,null,null,null,null,null,null,5,"+",3,null,null,14,null,22.3,7,null,4,"Peter J",null,null,null,null,null,null,null,null,4,"+",4,null,null,14,null,17.399999999999999,8]
[5,"Christer",null,null,null,null,null,null,null,null,4,"+",4,null,null,14,null,17.100000000000001,10,null,5,"Morgan",null,null,null,null,null,null,null,null,3,"+",5,null,null,14,null,17.2,9]
[6,"Ville",null,null,null,null,null,null,null,null,6,"+",2,null,null,14,null,17,12,null,6,"Kalle",null,null,null,null,null,null,null,null,2,"+",6,null,null,14,null,17.100000000000001,11]
[7,"Melle",null,null,null,null,null,null,null,null,3,"+",5,null,null,14,null,16.3,14,null,7,"Benny",null,null,null,null,null,null,null,null,4,"+",4,null,null,14,null,16.899999999999999,13]
[8,"Conta",null,null,null,null,null,null," ",null,1,"+",6,null,null,14,null,12.5,16,null,8,"Ove",null,null,null,null,null,null,null,null,7,"+",1,null,null,14,null,16.600000000000001,15]
[9,"Magnus",null,null,null,null,null,null,null,null,3,"+",5,null,null,14,null,11.4,18,null,9,"Ingvar",null,null,null,null,null,null,null,null,4,"+",4,null,null,14,null,14.2,17]
[null,null,null,null,null,null,null,null,null,null,null,null,null,null,null,null,null,null,"-",null,null,null,null,null,null,null,null,null,null,null,null,null,null,null,null,null,null,null,"-"]
["Summa: ",null,null,null,null,null,null,null,null," ",{"$f":"SUM(K4:K13)","v":35},"=",{"$f":"SUM(M4:M13)","v":35},null,null,{"$f":"SUM(P4:P13)","v":126},null,{"$f":"SUM(R4:R13)","v":174.8},null,null,"Summa: ",null,null,null,null,null,null,null,null," ",{"$f":"SUM(AE4:AE13)","v":36},"=",{"$f":"SUM(AG4:AG13)","v":36},null,null,{"$f":"SUM(AJ4:AJ13)","v":126},null,{"$f":"SUM(AL4:AL13)","v":175.4}]
[]
["RÖD","Omgångar (0 singelmatcher släpar)",null,null,null,null,null,null,null,null,null,null,null,null,null,null,null,"RÖD",null,null,"BLÅ","Omgångar (0 singelmatcher släpar)",null,null,null,null,null,null,null,null,null,null,null,null,null,null,null,"BLÅ"]
["Omgång",1,2,3,4,5,6,7,8,9,10,11,12,13,14,null,null,"Totalt",null,null,"Omgång",1,2,3,4,5,6,7,8,9,10,11,12,13,14,null,null,"Totalt"]
["Christer",0,3.5,0.5,0.5,0,0,2,3.5,3,0,2.8,0.5,null,0.8,null,null,{"$f":"SUM(B18:Q18)","v":17.100000000000001},null,null,"Benny",0,0.5,1.5,3.5,0.5,1,0,0,3.5,null,4,0,0,2.4,null,null,{"$f":"SUM(V18:AK18)","v":16.899999999999999}]
["Conta",1.2,0,1.5,0,null,0.5,2.5,3,0,0,0,0,1,2.8,null,null,12.5,null,null,"Ingvar",3.2,0,1,3,1,1.5,0,3,null,0.5,0,0.5,0.5,0,null,null,14.2]
["Magnus",0.4,null,0,0,0.5,1,2.5,0.5,3,0,0,3,0.5,0,null,null,11.4,null,null,"Kalle",2.4,0,1.3,0,1.5,0,2,1.5,3,0,2.4,3,null,0,null,null,17.100000000000001]
["MatsMats",4,3.5,1.2,0.5,0.5,3,0,3.5,0.5,1,0,null,3,1.6,null,null,22.3,null,null,"Pillen",0,3,1.5,3,3,3.5,0,null,3,3.5,0,3,3,3.2,null,null,29.7]
["Mattias",0,3.5,0.7,3.5,3,null,2.5,0,3,3.5,1.6,3.5,0.5,2,null,null,27.3,null,null,"Mats P",2,3.5,2,0.5,null,1,2.5,3.5,0.5,3,0.8,3.5,0.5,0,null,null,23.3]
["Melle",1.6,0,0.7,3,0,3.5,0.5,0,0.5,null,0,3.5,3,0,null,null,16.3,null,null,"Morgan",0,null,2.2000000000000002,3.5,0.5,0,0.5,0,0,3,0,0.5,3,4,null,null,17.2]
["Micke",0,0,1,3.5,3.5,0,0,3,null,3.5,3.6,0,3.5,3.6,null,null,25.200000000000003,null,null,"Myggan",0,3,2.5,null,3,3.5,2.5,0.5,3.5,1,0,0.5,3,0,null,null,23]
["Peter Å",0,0,0.3,3,3.5,1.5,2.5,null,3.5,3.5,3.2,3.5,0,1.2,null,null,25.7,null,null,"Ove",0,3.5,1.8,0.5,0,1.5,2.5,3.5,0.5,1.5,0.4,null,0.5,0.4,null,null,16.600000000000001]
["Ville",0,3.5,1,null,3,3.5,0,0.5,0.5,1.5,2,0,1.5,0,null,null,17,null,null,"Peter J",3.6,0.5,1.8,0,3.5,null,0,1,0,0.5,0,3,3.5,0,null,null,17.399999999999999]
[null,{"$f":"SUM(B18:B26)","v":7.1999999999999993},14,6.9,14,14,13,12.5,14,14,13,13.2,14,13,11.999999999999998,null,null,{"$f":"SUM(R18:R26)","v":174.79999999999998},null,null,null,{"$f":"SUM(V18:V26)","v":11.2},14,15.600000000000001,14,13,12,10,13,14,13,7.6000000000000005,14,14,10,null,null,{"$f":"SUM(AL18:AL26)","v":175.4}]
["Omg. klar","JA","JA","JA","JA","JA","JA","JA","JA","JA","JA","JA","JA","JA","JA",null,null,null,null,null,"Omg. klar","JA","JA","JA","JA","JA","JA","JA","JA","JA","JA","JA","JA","JA","JA"]
[]
[]
[null,null,"=","Slagspel - Gemensam omgång (De TVÅ bästa av totalt tre omgångar räknas, Markeras med GULT)"]
[]
[null,null,"=","Parspel (en sista)"]
[null,null,null,"Regler parspel: Fyrboll bästboll matchspel (lagspel två och två. Varje lag väljer bästa resultatet per hål. I övrigt som Matchspel. Det lag vinner, som har fler hål upp än vad det är kvar att spela). Man spelar på sitt egna hcp och sin egen boll. 2p per spelare för det vinnande laget, 1p per spelare vid delad match. 0,5p per spelare för det lag som har bästa resultat på senast vunna hål efter 18 spelade hål."]
[]
[]
[]
[]
[]
[null,null,"=","Mixmatch (Irish greensome, två sistor)"]
[null,null,null,"Mixregler: Irish greensome, matchspel (spel två och två. Båda spelarna slår ut från varje tee. Skillnaden är att på alla par 4 och par 5 hål slås ett slag till på partnerns boll innan man väljer vilken boll man ska spela vidare på. Spelet fortsätter sedan som Foursome). Lägg ihop era slopeslag och dela med två. Blir det ojämnt avrunda neråt. Skillnaden mellan lagen i slopehcp är de hål ena laget har ett slag extra. Vinnarna hål 1-9 får per spelare 1p, sistan 0,2p. Vinnarna hål 10-18 får per spelare 1p, sistan 0,3p. Lika resultat ger 0,5p var."]